[Event "Titled Tuesday Blitz November 29 Early 2022"]
[White "Ismayil, Malak"]
[Black "Hoffmann, Asa"]
[WhiteFideId "13412604"]
[BlackFideId "2001470"]
[WhiteElo "1879"]
[BlackElo "2117"]
[Result "1-0"]
[Round "06"]
[TimeControl "180+1"]
[Date "2022.11.30"]
[WhiteClock "0:00:02"]
[BlackClock "0:00:03"]

1. e4 {[%clk 0:03:00]}  d6 {[%clk 0:02:56]} 2. d4 {[%clk 0:02:58]}  Nf6 {[%clk 0:02:56]} 3. Nc3 {[%clk 0:02:58]}  c6 {[%clk 0:02:55]} 4. g3 {[%clk 0:02:56]}  Nbd7 {[%clk 0:02:54]} 5. Bg2 {[%clk 0:02:56]}  e5 {[%clk 0:02:54]} 6. Nge2 {[%clk 0:02:57]}  Be7 {[%clk 0:02:54]} 7. O-O {[%clk 0:02:57]}  b5 {[%clk 0:02:54]} 8. a3 {[%clk 0:02:57]}  Qc7 {[%clk 0:02:53]} 9. d5 {[%clk 0:02:57]}  cxd5 {[%clk 0:02:49]} 10. Nxd5 {[%clk 0:02:47]}  Nxd5 {[%clk 0:02:48]} 11. Qxd5 {[%clk 0:02:48]}  Rb8 {[%clk 0:02:47]} 12. Nc3 {[%clk 0:02:46]}  a6 {[%clk 0:02:43]} 13. Be3 {[%clk 0:02:40]}  Bb7 {[%clk 0:02:40]} 14. Qd2 {[%clk 0:02:40]}  Nf6 {[%clk 0:02:39]} 15. Bg5 {[%clk 0:02:33]}  O-O {[%clk 0:02:35]} 16. Bxf6 {[%clk 0:02:28]}  Bxf6 {[%clk 0:02:34]} 17. Rad1 {[%clk 0:02:29]}  Rfd8 {[%clk 0:02:34]} 18. Qe2 {[%clk 0:02:21]}  Rbc8 {[%clk 0:02:30]} 19. Rd3 {[%clk 0:02:21]}  Qc4 {[%clk 0:02:18]} 20. Rfd1 {[%clk 0:02:21]}  Be7 {[%clk 0:02:16]} 21. Qd2 {[%clk 0:02:13]}  h6 {[%clk 0:02:13]} 22. h4 {[%clk 0:01:34]}  a5 {[%clk 0:02:12]} 23. b3 {[%clk 0:01:26]}  Qc5 {[%clk 0:02:10]} 24. b4 {[%clk 0:01:12]}  axb4 {[%clk 0:02:08]} 25. axb4 {[%clk 0:01:13]}  Qxb4 {[%clk 0:01:49]} 26. Rb1 {[%clk 0:01:12]}  Qc4 {[%clk 0:01:38]} 27. Rxb5 {[%clk 0:00:56]}  Ba6 {[%clk 0:01:37]} 28. Rb3 {[%clk 0:00:51]}  Qc5 {[%clk 0:01:18]} 29. Nd5 {[%clk 0:00:47]}  Bf8 {[%clk 0:01:16]} 30. Rdc3 {[%clk 0:00:46]}  Qd4 {[%clk 0:01:07]} 31. Qxd4 {[%clk 0:00:36]}  exd4 {[%clk 0:01:07]} 32. Rxc8 {[%clk 0:00:37]}  Rxc8 {[%clk 0:01:05]} 33. Rb6 {[%clk 0:00:22]}  Bc4 {[%clk 0:01:01]} 34. Bh3 {[%clk 0:00:22]}  Re8 {[%clk 0:00:51]} 35. Bg2 {[%clk 0:00:16]}  Bxd5 {[%clk 0:00:47]} 36. exd5 {[%clk 0:00:17]}  Rc8 {[%clk 0:00:45]} 37. Rc6 {[%clk 0:00:16]}  Ra8 {[%clk 0:00:39]} 38. Rc4 {[%clk 0:00:16]}  Ra2 {[%clk 0:00:35]} 39. Be4 {[%clk 0:00:16]}  g6 {[%clk 0:00:35]} 40. Rxd4 {[%clk 0:00:16]}  f5 {[%clk 0:00:34]} 41. Rc4 {[%clk 0:00:16]}  fxe4 {[%clk 0:00:33]} 42. Rxe4 {[%clk 0:00:15]}  Bg7 {[%clk 0:00:33]} 43. Re6 {[%clk 0:00:14]}  Be5 {[%clk 0:00:29]} 44. Rxg6+ {[%clk 0:00:06]}  Kh7 {[%clk 0:00:27]} 45. Re6 {[%clk 0:00:06]}  Rxc2 {[%clk 0:00:26]} 46. f4 {[%clk 0:00:07]}  Bd4+ {[%clk 0:00:25]} 47. Kh1 {[%clk 0:00:07]}  Bc5 {[%clk 0:00:25]} 48. h5 {[%clk 0:00:07]}  Rd2 {[%clk 0:00:24]} 49. Re7+ {[%clk 0:00:06]}  Kg8 {[%clk 0:00:24]} 50. g4 {[%clk 0:00:05]}  Rxd5 {[%clk 0:00:23]} 51. Kg2 {[%clk 0:00:06]}  Rd3 {[%clk 0:00:23]} 52. Re6 {[%clk 0:00:02]}  Kg7 {[%clk 0:00:22]} 53. g5 {[%clk 0:00:02]}  hxg5 {[%clk 0:00:17]} 54. fxg5 {[%clk 0:00:03]}  Rd5 {[%clk 0:00:17]} 55. Rg6+ {[%clk 0:00:02]}  Kh7 {[%clk 0:00:16]} 56. Kf3 {[%clk 0:00:03]}  Bb6 {[%clk 0:00:12]} 57. Kg4 {[%clk 0:00:01]}  Bd8 {[%clk 0:00:11]} 58. Rh6+ {[%clk 0:00:02]}  Kg7 {[%clk 0:00:11]} 59. Rg6+ {[%clk 0:00:03]}  Kf7 {[%clk 0:00:11]} 60. Kf4 {[%clk 0:00:02]}  Rd4+ {[%clk 0:00:11]} 61. Kf5 {[%clk 0:00:02]}  Rd1 {[%clk 0:00:08]} 62. Kg4 {[%clk 0:00:02]}  Rg1+ {[%clk 0:00:08]} 63. Kf5 {[%clk 0:00:02]}  Rh1 {[%clk 0:00:07]} 64. Rh6 {[%clk 0:00:01]}  d5 {[%clk 0:00:07]} 65. Rh7+ {[%clk 0:00:02]}  Kg8 {[%clk 0:00:07]} 66. Kg6 {[%clk 0:00:03]}  Rg1 {[%clk 0:00:04]} 67. Rd7 {[%clk 0:00:02]}  Rxg5+ {[%clk 0:00:03]} 68. Kh6 {[%clk 0:00:02]} 1-0


[Site "https://www.chess.com"]

[Event "Titled Tuesday Blitz November 29 Early 2022"]
[White "Ivic, Velimir"]
[Black "Deac, Bogdan-Daniel"]
[WhiteFideId "950122"]
[BlackFideId "1226380"]
[WhiteElo "2854"]
[BlackElo "3044"]
[Result "0-1"]
[Round "06"]
[TimeControl "180+1"]
[Date "2022.11.30"]
[WhiteClock "0:00:01"]
[BlackClock "0:00:03"]

1. e4 {[%clk 0:03:00]}  c6 {[%clk 0:02:59]} 2. d4 {[%clk 0:03:00]}  d5 {[%clk 0:02:59]} 3. e5 {[%clk 0:02:58]}  Bf5 {[%clk 0:02:59]} 4. h4 {[%clk 0:02:59]}  h5 {[%clk 0:02:59]} 5. Bd3 {[%clk 0:02:59]}  Bxd3 {[%clk 0:02:59]} 6. Qxd3 {[%clk 0:03:00]}  e6 {[%clk 0:03:00]} 7. Bg5 {[%clk 0:03:01]}  Be7 {[%clk 0:03:00]} 8. Nf3 {[%clk 0:03:01]}  Nh6 {[%clk 0:03:00]} 9. Nc3 {[%clk 0:02:56]}  Nf5 {[%clk 0:02:59]} 10. a3 {[%clk 0:02:53]}  Nd7 {[%clk 0:02:49]} 11. Ne2 {[%clk 0:02:52]}  c5 {[%clk 0:02:49]} 12. c3 {[%clk 0:02:49]}  Qb6 {[%clk 0:02:19]} 13. Bxe7 {[%clk 0:02:30]}  Nxe7 {[%clk 0:02:17]} 14. O-O {[%clk 0:02:29]}  Qa6 {[%clk 0:02:13]} 15. Qd2 {[%clk 0:02:27]}  Nf5 {[%clk 0:01:52]} 16. Ng3 {[%clk 0:02:21]}  g6 {[%clk 0:01:52]} 17. Nxf5 {[%clk 0:02:09]}  gxf5 {[%clk 0:01:53]} 18. b4 {[%clk 0:02:10]}  c4 {[%clk 0:01:41]} 19. a4 {[%clk 0:02:07]}  Qb6 {[%clk 0:01:41]} 20. b5 {[%clk 0:02:03]}  Qd8 {[%clk 0:01:32]} 21. Ng5 {[%clk 0:01:50]}  Nf8 {[%clk 0:01:32]} 22. g3 {[%clk 0:01:47]}  Ng6 {[%clk 0:01:32]} 23. Nh3 {[%clk 0:01:35]}  Qe7 {[%clk 0:00:54]} 24. Kh2 {[%clk 0:01:34]}  O-O-O {[%clk 0:00:48]} 25. a5 {[%clk 0:01:22]}  Rdg8 {[%clk 0:00:46]} 26. Rg1 {[%clk 0:00:48]}  Kb8 {[%clk 0:00:43]} 27. Qg5 {[%clk 0:00:42]}  Qf8 {[%clk 0:00:37]} 28. Qe3 {[%clk 0:00:37]}  Rg7 {[%clk 0:00:34]} 29. Qf3 {[%clk 0:00:34]}  Qe7 {[%clk 0:00:33]} 30. Ng5 {[%clk 0:00:29]}  Nf8 {[%clk 0:00:27]} 31. Nh3 {[%clk 0:00:28]}  Rg4 {[%clk 0:00:25]} 32. Qe2 {[%clk 0:00:19]}  Rhg8 {[%clk 0:00:21]} 33. f3 {[%clk 0:00:19]}  R4g7 {[%clk 0:00:19]} 34. Qe3 {[%clk 0:00:17]}  Rh8 {[%clk 0:00:17]} 35. Nf4 {[%clk 0:00:13]}  Ng6 {[%clk 0:00:15]} 36. Nh3 {[%clk 0:00:14]}  Rhg8 {[%clk 0:00:14]} 37. Qh6 {[%clk 0:00:12]}  Qf8 {[%clk 0:00:13]} 38. Qe3 {[%clk 0:00:11]}  Qd8 {[%clk 0:00:11]} 39. Qg5 {[%clk 0:00:09]}  Qf8 {[%clk 0:00:07]} 40. Qf6 {[%clk 0:00:08]}  Rh8 {[%clk 0:00:04]} 41. a6 {[%clk 0:00:07]}  b6 {[%clk 0:00:04]} 42. Rg2 {[%clk 0:00:03]}  Rh6 {[%clk 0:00:04]} 43. Qg5 {[%clk 0:00:03]}  Rgh7 {[%clk 0:00:04]} 44. Qe3 {[%clk 0:00:03]}  Rh8 {[%clk 0:00:04]} 45. Qd2 {[%clk 0:00:03]}  Rg8 {[%clk 0:00:04]} 46. Rgg1 {[%clk 0:00:03]}  Rhh8 {[%clk 0:00:04]} 47. Qe3 {[%clk 0:00:03]}  Rg7 {[%clk 0:00:05]} 48. Rg2 {[%clk 0:00:03]}  Rhg8 {[%clk 0:00:05]} 49. Rgg1 {[%clk 0:00:04]}  Qe7 {[%clk 0:00:05]} 50. Qg5 {[%clk 0:00:04]}  Qe8 {[%clk 0:00:04]} 51. Qe3 {[%clk 0:00:04]}  Qf8 {[%clk 0:00:04]} 52. Qd2 {[%clk 0:00:04]}  Qe8 {[%clk 0:00:04]} 53. Qe3 {[%clk 0:00:05]}  Qxb5 {[%clk 0:00:05]} 54. Qd2 {[%clk 0:00:05]}  Qc6 {[%clk 0:00:05]} 55. Qe3 {[%clk 0:00:05]}  Qc7 {[%clk 0:00:05]} 56. Qd2 {[%clk 0:00:06]}  Ne7 {[%clk 0:00:06]} 57. Ng5 {[%clk 0:00:06]}  Nc6 {[%clk 0:00:05]} 58. Rgb1 {[%clk 0:00:05]}  Rg6 {[%clk 0:00:05]} 59. Qe3 {[%clk 0:00:05]}  Ka8 {[%clk 0:00:06]} 60. Rb5 {[%clk 0:00:05]}  Rb8 {[%clk 0:00:06]} 61. Qd2 {[%clk 0:00:04]}  Qc8 {[%clk 0:00:06]} 62. Qa2 {[%clk 0:00:03]}  Qd7 {[%clk 0:00:06]} 63. Qa4 {[%clk 0:00:03]}  Qc7 {[%clk 0:00:06]} 64. Rab1 {[%clk 0:00:03]}  Rc8 {[%clk 0:00:06]} 65. Qa3 {[%clk 0:00:04]}  Rgg8 {[%clk 0:00:06]} 66. Qa4 {[%clk 0:00:04]}  Rgd8 {[%clk 0:00:06]} 67. Nh3 {[%clk 0:00:05]}  Rd7 {[%clk 0:00:06]} 68. Nf4 {[%clk 0:00:06]}  Rh8 {[%clk 0:00:07]} 69. Kh3 {[%clk 0:00:06]}  Nb8 {[%clk 0:00:07]} 70. Qa3 {[%clk 0:00:05]}  Rdd8 {[%clk 0:00:07]} 71. R5b2 {[%clk 0:00:04]}  Rdg8 {[%clk 0:00:07]} 72. Kh2 {[%clk 0:00:05]}  Rh7 {[%clk 0:00:07]} 73. Nh3 {[%clk 0:00:06]}  Rhg7 {[%clk 0:00:06]} 74. Ng5 {[%clk 0:00:06]}  Qd8 {[%clk 0:00:06]} 75. f4 {[%clk 0:00:07]}  Qd7 {[%clk 0:00:06]} 76. Ra2 {[%clk 0:00:07]}  Rc8 {[%clk 0:00:06]} 77. Rab2 {[%clk 0:00:07]}  Rgg8 {[%clk 0:00:06]} 78. Rb5 {[%clk 0:00:08]}  Rc6 {[%clk 0:00:06]} 79. Qa4 {[%clk 0:00:08]}  Rgc8 {[%clk 0:00:06]} 80. Ra1 {[%clk 0:00:08]}  R8c7 {[%clk 0:00:06]} 81. Qb4 {[%clk 0:00:08]}  Qc8 {[%clk 0:00:06]} 82. Qa4 {[%clk 0:00:08]}  Qd8 {[%clk 0:00:05]} 83. Ra2 {[%clk 0:00:09]}  f6 {[%clk 0:00:06]} 84. exf6 {[%clk 0:00:08]}  Qxf6 {[%clk 0:00:06]} 85. Re2 {[%clk 0:00:07]}  Qg6 {[%clk 0:00:06]} 86. Rb1 {[%clk 0:00:07]}  Qe8 {[%clk 0:00:05]} 87. Rbe1 {[%clk 0:00:07]}  Qc8 {[%clk 0:00:05]} 88. Rxe6 {[%clk 0:00:05]}  Rxe6 {[%clk 0:00:04]} 89. Rxe6 {[%clk 0:00:05]}  Qxa6 {[%clk 0:00:03]} 90. Qxa6 {[%clk 0:00:02]}  Nxa6 {[%clk 0:00:04]} 91. Rd6 {[%clk 0:00:02]}  Nb4 {[%clk 0:00:04]} 92. Rd8+ {[%clk 0:00:01]}  Kb7 {[%clk 0:00:04]} 93. g4 {[%clk 0:00:02]}  fxg4 {[%clk 0:00:04]} 94. f5 {[%clk 0:00:02]}  Nc6 {[%clk 0:00:04]} 95. Re8 {[%clk 0:00:02]}  Nxd4 {[%clk 0:00:05]} 96. f6 {[%clk 0:00:02]}  Nf3+ {[%clk 0:00:04]} 97. Kg3 {[%clk 0:00:02]}  d4 {[%clk 0:00:03]} 98. f7 {[%clk 0:00:02]}  Rxf7 {[%clk 0:00:03]} 99. Nxf7 {[%clk 0:00:03]}  dxc3 {[%clk 0:00:03]} 100. Re3 {[%clk 0:00:03]}  c2 {[%clk 0:00:03]} 101. Rc3 {[%clk 0:00:04]}  Nd4 {[%clk 0:00:03]} 102. Nd6+ {[%clk 0:00:04]}  Kc6 {[%clk 0:00:03]} 103. Rxc4+ {[%clk 0:00:01]}  Kd5 {[%clk 0:00:03]} 104. Rc8 {[%clk 0:00:01]}  Kxd6 {[%clk 0:00:03]} 105. Kf2 {[%clk 0:00:01]}  Nc6 {[%clk 0:00:03]} 0-1


[Site "https://www.chess.com"]

[Event "Titled Tuesday Blitz November 29 Early 2022"]
[White "Jakubowski, Krzysztof"]
[Black "Salman, Pavel"]
[WhiteFideId "1112848"]
[BlackFideId "24153753"]
[WhiteElo "2373"]
[BlackElo "2187"]
[Result "0-1"]
[Round "06"]
[TimeControl "180+1"]
[Date "2022.11.30"]
[WhiteClock "0:02:14"]
[BlackClock "0:02:06"]

1. e4 {[%clk 0:03:00]}  c5 {[%clk 0:02:59]} 2. Nf3 {[%clk 0:03:00]}  e6 {[%clk 0:02:59]} 3. d4 {[%clk 0:03:00]}  cxd4 {[%clk 0:03:00]} 4. Nxd4 {[%clk 0:03:00]}  a6 {[%clk 0:03:01]} 5. Nc3 {[%clk 0:02:59]}  Qc7 {[%clk 0:03:01]} 6. Bd3 {[%clk 0:02:58]}  Nf6 {[%clk 0:02:58]} 7. O-O {[%clk 0:02:58]}  d6 {[%clk 0:02:59]} 8. Kh1 {[%clk 0:02:54]}  Be7 {[%clk 0:02:59]} 9. a4 {[%clk 0:02:53]}  Nbd7 {[%clk 0:02:59]} 10. f4 {[%clk 0:02:52]}  Nc5 {[%clk 0:02:59]} 11. Qe1 {[%clk 0:02:50]}  Bd7 {[%clk 0:02:48]} 12. Bd2 {[%clk 0:02:39]}  O-O {[%clk 0:02:45]} 13. Qg3 {[%clk 0:02:35]}  Nxd3 {[%clk 0:02:24]} 14. Qxd3 {[%clk 0:02:18]}  Rac8 {[%clk 0:02:20]} 15. Rae1 {[%clk 0:02:14]}  Qc4 {[%clk 0:02:18]} 16. Qg3 {[%clk 0:02:14]}  Qxd4 {[%clk 0:02:06]} 0-1


[Site "https://www.chess.com"]

[Event "Titled Tuesday Blitz November 29 Early 2022"]
[White "Janaszak, Dawid"]
[Black "Radjabov, Teimour"]
[WhiteFideId "1119206"]
[BlackFideId "13400924"]
[WhiteElo "2226"]
[BlackElo "2709"]
[Result "0-1"]
[Round "06"]
[TimeControl "180+1"]
[Date "2022.11.30"]
[WhiteClock "0:00:02"]
[BlackClock "0:00:35"]

1. e4 {[%clk 0:03:00]}  e5 {[%clk 0:02:58]} 2. Nf3 {[%clk 0:03:00]}  Nc6 {[%clk 0:02:59]} 3. d4 {[%clk 0:03:00]}  exd4 {[%clk 0:02:59]} 4. Nxd4 {[%clk 0:03:01]}  Nf6 {[%clk 0:02:59]} 5. Nxc6 {[%clk 0:03:01]}  bxc6 {[%clk 0:02:59]} 6. e5 {[%clk 0:03:01]}  Qe7 {[%clk 0:02:59]} 7. Qe2 {[%clk 0:03:02]}  Nd5 {[%clk 0:02:59]} 8. h4 {[%clk 0:03:02]}  a5 {[%clk 0:02:57]} 9. c4 {[%clk 0:03:01]}  Nb6 {[%clk 0:02:57]} 10. g3 {[%clk 0:02:44]}  Ba6 {[%clk 0:02:53]} 11. Nd2 {[%clk 0:02:39]}  O-O-O {[%clk 0:02:51]} 12. Bh3 {[%clk 0:02:08]}  Re8 {[%clk 0:02:42]} 13. f4 {[%clk 0:02:06]}  f6 {[%clk 0:02:40]} 14. e6 {[%clk 0:01:58]}  dxe6 {[%clk 0:02:24]} 15. b3 {[%clk 0:01:55]}  g5 {[%clk 0:02:00]} 16. Bb2 {[%clk 0:01:41]}  gxf4 {[%clk 0:01:57]} 17. gxf4 {[%clk 0:01:33]}  Rg8 {[%clk 0:01:48]} 18. O-O-O {[%clk 0:01:29]}  a4 {[%clk 0:01:45]} 19. Rhe1 {[%clk 0:01:24]}  f5 {[%clk 0:01:45]} 20. Qf3 {[%clk 0:01:17]}  Bg7 {[%clk 0:01:08]} 21. Qxc6 {[%clk 0:00:37]}  Bb7 {[%clk 0:00:46]} 22. Qb5 {[%clk 0:00:10]}  Bxb2+ {[%clk 0:00:45]} 23. Kxb2 {[%clk 0:00:10]}  Qxh4 {[%clk 0:00:46]} 24. Bxf5 {[%clk 0:00:08]}  Qf6+ {[%clk 0:00:45]} 25. Re5 {[%clk 0:00:05]}  exf5 {[%clk 0:00:43]} 26. Re1 {[%clk 0:00:04]}  Nd7 {[%clk 0:00:41]} 27. Ka3 {[%clk 0:00:02]}  Nxe5 {[%clk 0:00:39]} 28. fxe5 {[%clk 0:00:03]}  Qb6 {[%clk 0:00:35]} 29. Qxb6 {[%clk 0:00:02]}  cxb6 {[%clk 0:00:35]} 0-1


[Site "https://www.chess.com"]

[Event "Titled Tuesday Blitz November 29 Early 2022"]
[White "Jaskolka, Tomasz"]
[Black "Palacio,Igor Da Paz"]
[WhiteFideId "1170791"]
[BlackFideId "2121140"]
[WhiteElo "2126"]
[BlackElo "2126"]
[Result "1-0"]
[Round "06"]
[TimeControl "180+1"]
[Date "2022.11.30"]
[WhiteClock "0:00:05"]
[BlackClock "0:00:03"]

1. e4 {[%clk 0:02:59]}  d6 {[%clk 0:02:58]} 2. d4 {[%clk 0:02:58]}  Nf6 {[%clk 0:02:59]} 3. Nc3 {[%clk 0:02:59]}  g6 {[%clk 0:02:59]} 4. Bf4 {[%clk 0:02:59]}  c6 {[%clk 0:02:58]} 5. Qd2 {[%clk 0:02:59]}  Qa5 {[%clk 0:02:53]} 6. O-O-O {[%clk 0:02:55]}  Nbd7 {[%clk 0:02:47]} 7. Kb1 {[%clk 0:02:55]}  b5 {[%clk 0:02:32]} 8. f3 {[%clk 0:02:38]}  Nb6 {[%clk 0:02:25]} 9. e5 {[%clk 0:02:24]}  b4 {[%clk 0:02:22]} 10. exf6 {[%clk 0:01:58]}  bxc3 {[%clk 0:02:22]} 11. Qe1 {[%clk 0:01:48]}  Nd5 {[%clk 0:02:12]} 12. fxe7 {[%clk 0:01:32]}  Nxf4 {[%clk 0:01:45]} 13. exf8=Q+ {[%clk 0:01:31]}  Kxf8 {[%clk 0:01:45]} 14. Qxc3 {[%clk 0:01:15]}  Qxc3 {[%clk 0:01:43]} 15. bxc3 {[%clk 0:01:15]}  Nd5 {[%clk 0:01:31]} 16. Ne2 {[%clk 0:01:15]}  Ba6 {[%clk 0:01:26]} 17. Kc1 {[%clk 0:00:53]}  Bxe2 {[%clk 0:01:21]} 18. Bxe2 {[%clk 0:00:54]}  Nxc3 {[%clk 0:01:10]} 19. Rde1 {[%clk 0:00:54]}  Nxa2+ {[%clk 0:01:02]} 20. Kd2 {[%clk 0:00:55]}  Nb4 {[%clk 0:01:01]} 21. Bc4 {[%clk 0:00:55]}  Nd5 {[%clk 0:00:32]} 22. Ra1 {[%clk 0:00:50]}  Nb6 {[%clk 0:00:25]} 23. Bb3 {[%clk 0:00:49]}  Kg7 {[%clk 0:00:24]} 24. Ra6 {[%clk 0:00:48]}  Rhe8 {[%clk 0:00:19]} 25. Rha1 {[%clk 0:00:46]}  Kf6 {[%clk 0:00:17]} 26. Rxa7 {[%clk 0:00:46]}  Rxa7 {[%clk 0:00:18]} 27. Rxa7 {[%clk 0:00:46]}  Re7 {[%clk 0:00:17]} 28. Ra6 {[%clk 0:00:45]}  Rb7 {[%clk 0:00:16]} 29. Kd3 {[%clk 0:00:42]}  d5 {[%clk 0:00:12]} 30. c4 {[%clk 0:00:36]}  dxc4+ {[%clk 0:00:11]} 31. Bxc4 {[%clk 0:00:36]}  Ke7 {[%clk 0:00:06]} 32. Bb3 {[%clk 0:00:33]}  f5 {[%clk 0:00:03]} 33. Ra5 {[%clk 0:00:26]}  Kd6 {[%clk 0:00:03]} 34. Ra6 {[%clk 0:00:19]}  Nd5 {[%clk 0:00:02]} 35. Bxd5 {[%clk 0:00:18]}  Kxd5 {[%clk 0:00:03]} 36. Ra5+ {[%clk 0:00:19]}  Kd6 {[%clk 0:00:03]} 37. Ra2 {[%clk 0:00:19]}  Kd5 {[%clk 0:00:03]} 38. Kc3 {[%clk 0:00:17]}  c5 {[%clk 0:00:02]} 39. Ra5 {[%clk 0:00:13]}  Rc7 {[%clk 0:00:02]} 40. Kd3 {[%clk 0:00:12]}  Kd6 {[%clk 0:00:02]} 41. dxc5+ {[%clk 0:00:08]}  Rxc5 {[%clk 0:00:02]} 42. Rxc5 {[%clk 0:00:07]}  Kxc5 {[%clk 0:00:03]} 43. Ke3 {[%clk 0:00:08]}  Kd5 {[%clk 0:00:03]} 44. Kf4 {[%clk 0:00:08]}  Kd6 {[%clk 0:00:04]} 45. Kg5 {[%clk 0:00:09]}  Ke5 {[%clk 0:00:03]} 46. Kh6 {[%clk 0:00:05]} 1-0


[Site "https://www.chess.com"]

[Event "Titled Tuesday Blitz November 29 Early 2022"]
[White "Jiganchine, Roman"]
[Black "Roque Sola, Gisela"]
[WhiteFideId "2603667"]
[BlackFideId "5120241"]
[WhiteElo "2314"]
[BlackElo "1961"]
[Result "1-0"]
[Round "06"]
[TimeControl "180+1"]
[Date "2022.11.30"]
[WhiteClock "0:01:05"]
[BlackClock "0:01:08"]

1. e4 {[%clk 0:03:00]}  c5 {[%clk 0:02:59]} 2. Nf3 {[%clk 0:02:56]}  Nc6 {[%clk 0:03:00]} 3. Bb5 {[%clk 0:02:55]}  a6 {[%clk 0:02:59]} 4. Bxc6 {[%clk 0:02:50]}  dxc6 {[%clk 0:03:00]} 5. O-O {[%clk 0:02:45]}  Qc7 {[%clk 0:03:00]} 6. Re1 {[%clk 0:02:31]}  e5 {[%clk 0:02:59]} 7. a4 {[%clk 0:02:30]}  a5 {[%clk 0:02:58]} 8. h3 {[%clk 0:02:26]}  Bd6 {[%clk 0:02:57]} 9. b3 {[%clk 0:02:26]}  Ne7 {[%clk 0:02:57]} 10. Bb2 {[%clk 0:02:25]}  O-O {[%clk 0:02:55]} 11. Nc3 {[%clk 0:02:23]}  Ng6 {[%clk 0:02:53]} 12. Ne2 {[%clk 0:02:21]}  Be6 {[%clk 0:02:48]} 13. d3 {[%clk 0:02:20]}  Kh8 {[%clk 0:02:43]} 14. Kh2 {[%clk 0:02:20]}  f6 {[%clk 0:02:36]} 15. g3 {[%clk 0:02:08]}  b5 {[%clk 0:02:34]} 16. Qd2 {[%clk 0:02:02]}  Rfd8 {[%clk 0:02:28]} 17. Nh4 {[%clk 0:01:53]}  Nxh4 {[%clk 0:02:26]} 18. gxh4 {[%clk 0:01:54]}  c4 {[%clk 0:02:20]} 19. Rg1 {[%clk 0:01:37]}  cxd3 {[%clk 0:02:13]} 20. cxd3 {[%clk 0:01:37]}  Bb4 {[%clk 0:02:10]} 21. Qc2 {[%clk 0:01:31]}  Qd7 {[%clk 0:01:59]} 22. Rg3 {[%clk 0:01:30]}  Qf7 {[%clk 0:01:56]} 23. d4 {[%clk 0:01:24]}  exd4 {[%clk 0:01:53]} 24. Nxd4 {[%clk 0:01:23]}  Bd6 {[%clk 0:01:53]} 25. Rg1 {[%clk 0:01:13]}  Bxg3+ {[%clk 0:01:51]} 26. Rxg3 {[%clk 0:01:14]}  bxa4 {[%clk 0:01:49]} 27. bxa4 {[%clk 0:01:13]}  Bc4 {[%clk 0:01:23]} 28. Nf5 {[%clk 0:01:10]}  Rg8 {[%clk 0:01:16]} 29. Nd6 {[%clk 0:01:07]}  Qe6 {[%clk 0:01:10]} 30. Nxc4 {[%clk 0:01:06]}  Qxe4 {[%clk 0:01:08]} 31. Qxe4 {[%clk 0:01:05]} 1-0


[Site "https://www.chess.com"]

[Event "Titled Tuesday Blitz November 29 Early 2022"]
[White "Jimenez Almeida, Luis David"]
[Black "Danielyan, Vahe"]
[WhiteFideId "22242244"]
[BlackFideId "13304828"]
[WhiteElo "2158"]
[BlackElo "2423"]
[Result "0-1"]
[Round "06"]
[TimeControl "180+1"]
[Date "2022.11.30"]
[WhiteClock "0:00:04"]
[BlackClock "0:00:14"]

1. e4 {[%clk 0:03:00]}  d6 {[%clk 0:03:00]} 2. d4 {[%clk 0:02:53]}  Nf6 {[%clk 0:03:01]} 3. Nc3 {[%clk 0:02:51]}  e5 {[%clk 0:03:02]} 4. Nge2 {[%clk 0:02:49]}  Nbd7 {[%clk 0:03:00]} 5. g3 {[%clk 0:02:50]}  h6 {[%clk 0:03:00]} 6. Bg2 {[%clk 0:02:50]}  g5 {[%clk 0:03:01]} 7. h3 {[%clk 0:02:48]}  Rg8 {[%clk 0:03:01]} 8. Be3 {[%clk 0:02:48]}  c6 {[%clk 0:03:00]} 9. Qd2 {[%clk 0:02:48]}  Qc7 {[%clk 0:03:01]} 10. a4 {[%clk 0:02:44]}  a5 {[%clk 0:03:00]} 11. O-O {[%clk 0:02:41]}  Be7 {[%clk 0:02:57]} 12. Rae1 {[%clk 0:02:37]}  exd4 {[%clk 0:02:54]} 13. Nxd4 {[%clk 0:02:36]}  Ne5 {[%clk 0:02:55]} 14. b3 {[%clk 0:02:32]}  Bd7 {[%clk 0:02:48]} 15. Kh2 {[%clk 0:02:29]}  O-O-O {[%clk 0:02:47]} 16. f4 {[%clk 0:02:08]}  gxf4 {[%clk 0:02:47]} 17. Bxf4 {[%clk 0:02:09]}  h5 {[%clk 0:02:32]} 18. Nf5 {[%clk 0:02:07]}  Bxf5 {[%clk 0:02:21]} 19. exf5 {[%clk 0:02:08]}  h4 {[%clk 0:02:22]} 20. g4 {[%clk 0:02:02]}  Nfxg4+ {[%clk 0:02:18]} 21. hxg4 {[%clk 0:02:03]}  Nxg4+ {[%clk 0:02:14]} 22. Kh3 {[%clk 0:02:03]}  Ne5 {[%clk 0:02:09]} 23. Be4 {[%clk 0:01:46]}  Bf6 {[%clk 0:01:50]} 24. Rg1 {[%clk 0:01:45]}  d5 {[%clk 0:01:47]} 25. Bd3 {[%clk 0:01:23]}  Rg3+ {[%clk 0:01:29]} 26. Rxg3 {[%clk 0:01:03]}  hxg3 {[%clk 0:01:29]} 27. Rh1 {[%clk 0:00:52]}  Rg8 {[%clk 0:01:13]} 28. Kg2 {[%clk 0:00:50]}  Qb6 {[%clk 0:01:13]} 29. Bxe5 {[%clk 0:00:49]}  Bxe5 {[%clk 0:01:14]} 30. Nd1 {[%clk 0:00:37]}  f6 {[%clk 0:01:07]} 31. Qe3 {[%clk 0:00:33]}  Qb4 {[%clk 0:01:04]} 32. Rh7 {[%clk 0:00:30]}  Kb8 {[%clk 0:01:04]} 33. Be2 {[%clk 0:00:16]}  Rd8 {[%clk 0:00:51]} 34. Bf3 {[%clk 0:00:16]}  d4 {[%clk 0:00:48]} 35. Qe2 {[%clk 0:00:16]}  d3 {[%clk 0:00:46]} 36. cxd3 {[%clk 0:00:16]}  Qxb3 {[%clk 0:00:47]} 37. Be4 {[%clk 0:00:14]}  Qxa4 {[%clk 0:00:47]} 38. Ne3 {[%clk 0:00:13]}  Qd4 {[%clk 0:00:35]} 39. Nc4 {[%clk 0:00:14]}  Bc7 {[%clk 0:00:36]} 40. Qb2 {[%clk 0:00:11]}  Kc8 {[%clk 0:00:30]} 41. Qxd4 {[%clk 0:00:09]}  Rxd4 {[%clk 0:00:31]} 42. Rh8+ {[%clk 0:00:07]}  Rd8 {[%clk 0:00:31]} 43. Rh7 {[%clk 0:00:07]}  b5 {[%clk 0:00:28]} 44. Nd2 {[%clk 0:00:07]}  Kb7 {[%clk 0:00:27]} 45. Rf7 {[%clk 0:00:07]}  Rd6 {[%clk 0:00:22]} 46. Nb3 {[%clk 0:00:07]}  Kb6 {[%clk 0:00:20]} 47. d4 {[%clk 0:00:07]}  a4 {[%clk 0:00:17]} 48. Nc5 {[%clk 0:00:06]}  a3 {[%clk 0:00:17]} 49. Nb3 {[%clk 0:00:04]}  a2 {[%clk 0:00:16]} 50. Rf8 {[%clk 0:00:05]}  Rxd4 {[%clk 0:00:16]} 51. Bf3 {[%clk 0:00:03]}  Rb4 {[%clk 0:00:15]} 52. Ra8 {[%clk 0:00:03]}  Rxb3 {[%clk 0:00:14]} 53. Rxa2 {[%clk 0:00:03]}  Be5 {[%clk 0:00:13]} 54. Rc2 {[%clk 0:00:04]}  Rc3 {[%clk 0:00:13]} 55. Ra2 {[%clk 0:00:04]}  b4 {[%clk 0:00:13]} 56. Ra8 {[%clk 0:00:04]}  b3 {[%clk 0:00:14]} 57. Rb8+ {[%clk 0:00:04]}  Kc5 {[%clk 0:00:14]} 0-1


[Site "https://www.chess.com"]